[Event "44th Chess Olympiad Women 2022"]
[Site "Chennai"]
[Date "2022.08.02"]
[Round "5.51"]
[White "Aishath Alya Mohamed Shareef"]
[Black "Sezdbekova Aizhan"]
[Result "0-1"]
[ECO "D02"]
[WhiteElo "1110"]
[BlackElo "1615"]
[Annotator "NA RC COMBH"]
[PlyCount "86"]
[EventDate "2022.07.29"]
[EventType "team-tourn"]
[EventCountry "IND"]
[SourceTitle "playchess.com"]
[Source "ChessBase"]
[SourceQuality "1"]
[WhiteTeam "Maldives"]
[BlackTeam "Kyrgyzstan"]
[WhiteTeamCountry "MDV"]
[BlackTeamCountry "KGZ"]
[TimeControl "40/5400+30:1800+30"]

1. d4 {[%emt 0:00:04]} Nf6 {[%emt 0:00:09]} 2. Bf4 {[%emt 0:00:14]} e6 {[%emt 0:00:57]} 3. Nf3 {[%emt 0:00:33]} b6 {[%emt 0:01:13]} 4. e3 {[%emt 0:01:13]} Bb7 {[%emt 0:00:26]} 5. Bd3 {[%emt 0:01:14]} Be7 {[%emt 0:01:59]} 6. Nbd2 {[%emt 0:00:59]} d5 {[%emt 0:01:32]} 7. c3 {[%emt 0:00:58]} h6 {[%emt 0:07:58]} 8. Ne5 {[%emt 0:02:54]} a6 {[%emt 0:16:44]} 9. Qc2 {[%emt 0:01:08]} Nbd7 {[%emt 0:10:00]} 10. Ndf3 {[%emt 0:04:25]} Nxe5 {[%emt 0:14:23]} 11. Nxe5 {[%emt 0:04:04]} Nd7 {[%emt 0:01:28]} 12. Qe2 {[%emt 0:11:18]} Nxe5 {[%emt 0:01:22]} 13. Bxe5 {[%emt 0:00:37]} Bf6 {[%emt 0:00:43]} 14. Bg3 {[%emt 0:04:16]} c5 {[%emt 0:05:03]} 15. f4 {[%emt 0:08:29]} g6 {[%emt 0:12:12]} 16. Qf3 {[%emt 0:11:56]} Bg7 {[%emt 0:04:31]} 17. h3 {[%emt 0:02:13]} Rc8 {[%emt 0:05:12]} 18. Rc1 {[%emt 0:09:11]} cxd4 {[%emt 0:02:16]} 19. exd4 {[%emt 0:10:30]} Bxd4 {[%emt 0:00:21]} 20. Bf2 {[%emt 0:00:55]} Bxf2+ {[%emt 0:02:09]} 21. Qxf2 {[%emt 0:00:26]} Rc6 {[%emt 0:05:13]} 22. Rd1 {[%emt 0:03:31]} Qf6 {[%emt 0:01:16]} 23. O-O {[%emt 0:03:48]} O-O {[%emt 0:00:24]} 24. Rfe1 {[%emt 0:02:13]} Rd6 {[%emt 0:01:35]} 25. Rd2 {[%emt 0:02:53]} Rfd8 {[%emt 0:00:26]} 26. Red1 {[%emt 0:01:35]} d4 {[%emt 0:01:05]} 27. Be2 {[%emt 0:02:06]} b5 {[%emt 0:02:43]} 28. a3 {[%emt 0:00:53]} Be4 {[%emt 0:00:32]} 29. cxd4 {[%emt 0:01:09]} Bd5 {[%emt 0:00:17]} 30. g3 {[%emt 0:00:30]} Bb3 {[%emt 0:00:18]} 31. Re1 {[%emt 0:04:20]} Rxd4 {[%emt 0:00:03]} 32. Rxd4 {[%emt 0:00:20]} Qxd4 {[%emt 0:00:13]} 33. Qxd4 {[%emt 0:00:11]} Rxd4 {[%emt 0:00:02]} 34. Kf2 {[%emt 0:01:53]} Rd2 {[%emt 0:00:19]} 35. Rc1 {[%emt 0:00:55]} Bc4 {[%emt 0:00:19]} 36. Re1 {[%emt 0:00:42]} Rxb2 {[%emt 0:00:06]} 37. Kf1 {[%emt 0:01:00]} Bxe2+ {[%emt 0:00:10]} 38. Rxe2 {[%emt 0:00:17]} Rb3 {[%emt 0:00:05]} 39. Kf2 {[%emt 0:00:52]} Rxa3 {[%emt 0:00:09]} 40. Re3 {[%emt 0:00:32]} b4 {[%emt 0:00:22]} 41. Re2 {[%emt 0:30:43]} b3 {[%emt 0:30:09]} 42. Rb2 {[%emt 0:00:14]} Ra2 {[%emt 0:00:05]} 43. Rxa2 {[%emt 0:00:58]} bxa2 {[%emt 0:00:05]} 0-1

[Event "44th Chess Olympiad Women 2022"]
[Site "Chennai"]
[Date "2022.08.02"]
[Round "5.51"]
[White "Nuha, Rilwan"]
[Black "Samaganova, Alexandra"]
[Result "0-1"]
[ECO "B23"]
[WhiteElo "1068"]
[BlackElo "1864"]
[Annotator "NA RC COMBH"]
[PlyCount "72"]
[EventDate "2022.07.29"]
[EventType "team-tourn"]
[EventCountry "IND"]
[SourceTitle "playchess.com"]
[Source "ChessBase"]
[SourceQuality "1"]
[WhiteTeam "Maldives"]
[BlackTeam "Kyrgyzstan"]
[WhiteTeamCountry "MDV"]
[BlackTeamCountry "KGZ"]
[TimeControl "40/5400+30:1800+30"]

1. e4 {[%emt 0:00:03]} c5 {[%emt 0:00:06]} 2. Nc3 {[%emt 0:00:07]} e6 {[%emt 0:00:07]} 3. f4 {[%emt 0:00:06]} a6 {[%emt 0:00:33]} 4. Nf3 {[%emt 0:00:26]} Qc7 {[%emt 0:02:41]} 5. d3 {[%emt 0:05:04]} b5 {[%emt 0:03:36]} 6. a4 {[%emt 0:01:10]} b4 {[%emt 0:00:39]} 7. Ne2 {[%emt 0:00:30]} Bb7 {[%emt 0:01:26]} 8. Bd2 {[%emt 0:01:54]} d6 {[%emt 0:12:20]} 9. c3 {[%emt 0:00:29]} a5 {[%emt 0:00:53]} 10. Ng3 {[%emt 0:01:41]} Nf6 {[%emt 0:07:06]} 11. Qb3 {[%emt 0:10:44]} Nbd7 {[%emt 0:09:41]} 12. Be2 {[%emt 0:03:20]} Be7 {[%emt 0:03:37]} 13. O-O {[%emt 0:01:38]} O-O {[%emt 0:12:59]} 14. f5 {[%emt 0:01:54]} e5 {[%emt 0:07:43]} 15. Ng5 {[%emt 0:06:47]} d5 {[%emt 0:04:05]} 16. Rac1 {[%emt 0:13:51]} h6 {[%emt 0:05:42]} 17. Nh3 {[%emt 0:02:44]} dxe4 {[%emt 0:02:39]} 18. dxe4 {[%emt 0:02:45]} Nxe4 {[%emt 0:05:51]} 19. Nxe4 {[%emt 0:01:20]} Bxe4 {[%emt 0:00:02]} 20. cxb4 {[%emt 0:00:33]} axb4 {[%emt 0:03:31]} 21. Qxb4 {[%emt 0:01:56]} Bc6 {[%emt 0:02:24]} 22. Qg4 {[%emt 0:03:40]} Rxa4 {[%emt 0:00:47]} 23. Rc4 {[%emt 0:01:51]} Nf6 {[%emt 0:06:12]} 24. Qg3 {[%emt 0:04:10]} Kh7 {[%emt 0:04:33]} 25. Bc3 {[%emt 0:10:04]} Bd6 {[%emt 0:01:06]} 26. Rd1 {[%emt 0:03:23]} Rxc4 {[%emt 0:02:03]} 27. Bxc4 {[%emt 0:01:30]} Ne4 {[%emt 0:00:02]} 28. Qd3 {[%emt 0:02:38]} f6 {[%emt 0:01:32]} 29. Nf2 {[%emt 0:02:41]} Nxf2 {[%emt 0:00:29]} 30. Kxf2 {[%emt 0:00:03]} Be7 {[%emt 0:00:25]} 31. Re1 {[%emt 0:02:56]} e4 {[%emt 0:00:36]} 32. Qh3 {[%emt 0:01:23]} Qf4+ {[%emt 0:00:26]} 33. Kg1 {[%emt 0:00:18]} Bd6 {[%emt 0:00:33]} 34. Re3 {[%emt 0:02:03]} Ra8 {[%emt 0:00:25]} 35. Rg3 {[%emt 0:03:27]} Ra1+ {[%emt 0:00:21]} 36. Bf1 {[%emt 0:00:20]} Qxf1# {[%emt 0:00:07]} 0-1

[Event "44th Chess Olympiad Women 2022"]
[Site "Chennai"]
[Date "2022.08.02"]
[Round "5.52"]
[White "Berezovska, Svetlana"]
[Black "Razafindratina, Mariam Clarisse"]
[Result "1-0"]
[ECO "C42"]
[WhiteElo "1781"]
[BlackElo "1318"]
[Annotator "NA RC COMBH"]
[PlyCount "85"]
[EventDate "2022.07.29"]
[EventType "team-tourn"]
[EventCountry "IND"]
[SourceTitle "playchess.com"]
[Source "ChessBase"]
[SourceQuality "1"]
[WhiteTeam "Monaco"]
[BlackTeam "Madagascar"]
[WhiteTeamCountry "MNC"]
[BlackTeamCountry "MAD"]
[TimeControl "40/5400+30:1800+30"]

1. e4 {[%emt 0:00:03]} e5 {[%emt 0:00:07]} 2. Nf3 {[%emt 0:00:04]} Nf6 {[%emt 0:00:27]} 3. Nxe5 {[%emt 0:00:13]} Nxe4 {[%emt 0:00:32]} 4. c4 {[%emt 0:04:06]} Bc5 {[%emt 0:01:19]} 5. d4 {[%emt 0:01:49]} d6 {[%emt 0:03:45]} 6. Nf3 {[%emt 0:10:49]} Bb4+ {[%emt 0:03:12]} 7. Bd2 {[%emt 0:01:15]} Bxd2+ {[%emt 0:00:56]} 8. Nbxd2 {[%emt 0:00:20]} Nf6 {[%emt 0:03:37]} 9. Bd3 {[%emt 0:03:27]} O-O {[%emt 0:00:56]} 10. O-O {[%emt 0:00:24]} Bg4 {[%emt 0:00:42]} 11. h3 {[%emt 0:01:31]} Bh5 {[%emt 0:00:43]} 12. Qb3 {[%emt 0:05:23]} b6 {[%emt 0:02:46]} 13. Rfe1 {[%emt 0:10:19]} Nbd7 {[%emt 0:02:09]} 14. Re3 {[%emt 0:05:43]} Bg6 {[%emt 0:03:23]} 15. Rae1 {[%emt 0:04:20]} Nh5 {[%emt 0:01:22]} 16. Bxg6 {[%emt 0:04:53]} hxg6 {[%emt 0:00:35]} 17. d5 {[%emt 0:06:29]} Nc5 {[%emt 0:00:49]} 18. Qc2 {[%emt 0:00:22]} Qf6 {[%emt 0:01:03]} 19. b4 {[%emt 0:02:09]} Na6 {[%emt 0:00:50]} 20. a3 {[%emt 0:01:05]} Nb8 {[%emt 0:02:51]} 21. Ne4 {[%emt 0:11:18]} Qf4 {[%emt 0:03:50]} 22. g3 {[%emt 0:03:30]} Qh6 {[%emt 0:00:42]} 23. Neg5 {[%emt 0:01:15]} Nf6 {[%emt 0:02:19]} 24. h4 {[%emt 0:03:56]} Nbd7 {[%emt 0:00:51]} 25. Re7 {[%emt 0:01:33]} Qh5 {[%emt 0:02:26]} 26. Qa4 {[%emt 0:05:33]} Qg4 {[%emt 0:01:20]} 27. Qc6 {[%emt 0:00:46]} Rac8 {[%emt 0:00:38]} 28. Kg2 {[%emt 0:02:17]} a6 {[%emt 0:00:58]} 29. Nh2 {[%emt 0:05:10]} Qf5 {[%emt 0:01:29]} 30. Qa4 {[%emt 0:01:17]} Nb8 {[%emt 0:00:52]} 31. R1e3 {[%emt 0:01:28]} c6 {[%emt 0:06:33]} 32. Qd1 {[%emt 0:01:16]} cxd5 {[%emt 0:01:01]} 33. Rf3 {[%emt 0:00:33]} Qe5 {[%emt 0:03:32]} 34. Rxe5 {[%emt 0:00:17]} dxe5 {[%emt 0:00:10]} 35. cxd5 {[%emt 0:00:16]} e4 {[%emt 0:02:24]} 36. Re3 {[%emt 0:00:16]} Rfe8 {[%emt 0:00:31]} 37. Ng4 {[%emt 0:00:54]} Rcd8 {[%emt 0:00:30]} 38. Nxf6+ {[%emt 0:00:33]} gxf6 {[%emt 0:00:49]} 39. Nxe4 {[%emt 0:00:12]} Kg7 {[%emt 0:00:38]} 40. Qd4 {[%emt 0:00:29]} Nd7 {[%emt 0:00:53]} 41. Rf3 {[%emt 0:30:21]} b5 {[%emt 0:31:08]} 42. Nxf6 {[%emt 0:00:13]} Nxf6 {[%emt 0:00:29]} 43. Qxf6+ {[%emt 0:00:07]} 1-0

[Event "44th Chess Olympiad Women 2022"]
[Site "Chennai"]
[Date "2022.08.02"]
[Round "5.52"]
[White "Raharimanana, Faratiana"]
[Black "Jose de Ribbegren, Kenia"]
[Result "0-1"]
[ECO "B34"]
[WhiteElo "1707"]
[BlackElo "1787"]
[Annotator "NA RC COMBH"]
[PlyCount "101"]
[EventDate "2022.07.29"]
[EventType "team-tourn"]
[EventCountry "IND"]
[SourceTitle "playchess.com"]
[Source "ChessBase"]
[SourceQuality "1"]
[WhiteTeam "Madagascar"]
[BlackTeam "Monaco"]
[WhiteTeamCountry "MAD"]
[BlackTeamCountry "MNC"]
[TimeControl "40/5400+30:1800+30"]

1. e4 {[%emt 0:00:06]} c5 {[%emt 0:00:38]} 2. Nf3 {[%emt 0:00:10]} g6 {[%emt 0:00:14]} 3. Bc4 {[%emt 0:02:08]} Bg7 {[%emt 0:01:28]} 4. d4 {[%emt 0:00:55]} cxd4 {[%emt 0:00:05]} 5. Nxd4 {[%emt 0:00:07]} Nc6 {[%emt 0:01:36]} 6. c3 {[%emt 0:01:14]} Nf6 {[%emt 0:05:41]} 7. Nd2 {[%emt 0:12:27]} O-O {[%emt 0:00:35]} 8. O-O {[%emt 0:00:16]} Nxd4 {[%emt 0:07:11]} 9. cxd4 {[%emt 0:01:01]} Nxe4 {[%emt 0:01:45]} 10. Bxf7+ {[%emt 0:05:31]} Rxf7 {[%emt 0:00:12]} 11. Nxe4 {[%emt 0:00:09]} h6 {[%emt 0:06:39]} 12. Be3 {[%emt 0:04:55]} b6 {[%emt 0:08:41]} 13. Qd2 {[%emt 0:03:12]} Bb7 {[%emt 0:01:28]} 14. Ng3 {[%emt 0:00:23]} Kh7 {[%emt 0:00:26]} 15. Rac1 {[%emt 0:00:26]} Rc8 {[%emt 0:03:11]} 16. Rxc8 {[%emt 0:00:21]} Qxc8 {[%emt 0:00:27]} 17. Rc1 {[%emt 0:00:12]} Qa8 {[%emt 0:07:20]} 18. f3 {[%emt 0:01:44]} e6 {[%emt 0:06:50]} 19. Qd3 {[%emt 0:03:20]} Bf8 {[%emt 0:08:35]} 20. Ne4 {[%emt 0:06:04]} Qd8 {[%emt 0:01:32]} 21. Nf2 {[%emt 0:05:35]} d6 {[%emt 0:08:32]} 22. Qd2 {[%emt 0:03:27]} Bg7 {[%emt 0:04:36]} 23. Ng4 {[%emt 0:04:55]} Qf8 {[%emt 0:01:23]} 24. Rc2 {[%emt 0:00:45]} h5 {[%emt 0:02:34]} 25. Nf2 {[%emt 0:00:44]} h4 {[%emt 0:02:06]} 26. Nh3 {[%emt 0:01:10]} Bf6 {[%emt 0:02:06]} 27. Bg5 {[%emt 0:00:52]} Rd7 {[%emt 0:02:08]} 28. Qf4 {[%emt 0:02:02]} Bg7 {[%emt 0:03:21]} 29. Qxf8 {[%emt 0:03:31]} Bxf8 {[%emt 0:00:02]} 30. Bxh4 {[%emt 0:00:11]} Bh6 {[%emt 0:01:37]} 31. Bg5 {[%emt 0:00:31]} Bg7 {[%emt 0:00:56]} 32. Be3 {[%emt 0:01:16]} e5 {[%emt 0:00:38]} 33. dxe5 {[%emt 0:01:10]} Bxe5 {[%emt 0:01:33]} 34. b3 {[%emt 0:01:01]} d5 {[%emt 0:00:23]} 35. Rd2 {[%emt 0:04:57]} Bc3 {[%emt 0:02:31]} 36. Rd3 {[%emt 0:00:45]} d4 {[%emt 0:01:52]} 37. Bf2 {[%emt 0:02:15]} Ba6 {[%emt 0:00:16]} 38. Rd1 {[%emt 0:01:19]} Be2 {[%emt 0:00:46]} 39. Rb1 {[%emt 0:03:03]} d3 {[%emt 0:01:22]} 40. Ng5+ {[%emt 0:02:33]} Kg8 {[%emt 0:01:38]} 41. Ne4 {[%emt 0:30:19]} Bg7 {[%emt 0:30:55]} 42. Be3 {[%emt 0:00:27]} Rc7 {[%emt 0:01:02]} 43. Rc1 {[%emt 0:01:00]} Rc2 {[%emt 0:00:00]} 44. Rxc2 {[%emt 0:00:00]} dxc2 {[%emt 0:00:00]} 45. Bc1 {[%emt 0:00:00]} Bd4+ {[%emt 0:00:00]} 46. Kh1 {[%emt 0:00:00]} Kf7 {[%emt 0:00:00]} 47. h4 {[%emt 0:00:00]} Ke6 {[%emt 0:00:00]} 48. g4 {[%emt 0:00:00]} Bxf3+ {[%emt 0:00:00]} 49. Kh2 {[%emt 0:00:00]} Bxe4 {[%emt 0:00:00]} 50. Kg3 {[%emt 0:00:00]} Be5+ {[%emt 0:00:00]} 51. Kf2 {[%emt 0:00:00]} 0-1

[Event "44th Chess Olympiad Women 2022"]
[Site "Chennai"]
[Date "2022.08.02"]
[Round "5.52"]
[White "Berezovsky, Fiorina"]
[Black "Razafindrabe, Bakoly"]
[Result "1-0"]
[ECO "D37"]
[WhiteElo "1544"]
[BlackElo "1238"]
[Annotator "NA COMBH"]
[PlyCount "119"]
[EventDate "2022.07.29"]
[EventType "team-tourn"]
[EventCountry "IND"]
[SourceTitle "playchess.com"]
[Source "ChessBase"]
[SourceQuality "1"]
[WhiteTeam "Monaco"]
[BlackTeam "Madagascar"]
[WhiteTeamCountry "MNC"]
[BlackTeamCountry "MAD"]
[TimeControl "40/5400+30:1800+30"]

1. d4 {[%emt 0:00:08]} d5 {[%emt 0:00:25]} 2. c4 {[%emt 0:00:09]} e6 {[%emt 0:00:13]} 3. Nc3 {[%emt 0:00:37]} Nf6 {[%emt 0:00:34]} 4. Bf4 {[%emt 0:00:39]} Bb4 {[%emt 0:01:01]} 5. e3 {[%emt 0:00:59]} Nbd7 {[%emt 0:09:59]} 6. Nf3 {[%emt 0:01:59]} c5 {[%emt 0:05:45]} 7. cxd5 {[%emt 0:03:05]} Nxd5 {[%emt 0:01:03]} 8. Qc2 {[%emt 0:02:35]} Nxf4 {[%emt 0:00:41]} 9. exf4 {[%emt 0:00:18]} Qc7 {[%emt 0:02:37]} 10. a3 {[%emt 0:05:38]} Bxc3+ {[%emt 0:00:26]} 11. Qxc3 {[%emt 0:00:41]} O-O {[%emt 0:00:58]} 12. Bd3 {[%emt 0:01:53]} b6 {[%emt 0:08:06]} 13. dxc5 {[%emt 0:01:40]} Nxc5 {[%emt 0:00:50]} 14. Ng5 {[%emt 0:07:35]} Nxd3+ {[%emt 0:05:29]} 15. Qxd3 {[%emt 0:00:14]} f5 {[%emt 0:00:10]} 16. Qe3 {[%emt 0:02:50]} Re8 {[%emt 0:01:18]} 17. O-O {[%emt 0:01:02]} h6 {[%emt 0:01:00]} 18. Nf3 {[%emt 0:00:46]} Bb7 {[%emt 0:00:22]} 19. Rac1 {[%emt 0:00:45]} Qe7 {[%emt 0:01:47]} 20. Ne5 {[%emt 0:01:07]} Bd5 {[%emt 0:07:03]} 21. Rc3 {[%emt 0:02:06]} Rac8 {[%emt 0:01:54]} 22. Rfc1 {[%emt 0:00:58]} Rxc3 {[%emt 0:00:32]} 23. Rxc3 {[%emt 0:01:30]} Qb7 {[%emt 0:10:12]} 24. f3 {[%emt 0:09:23]} Rc8 {[%emt 0:04:43]} 25. Qc1 {[%emt 0:00:42]} Rxc3 {[%emt 0:00:14]} 26. Qxc3 {[%emt 0:00:19]} a5 {[%emt 0:03:23]} 27. b4 {[%emt 0:04:42]} axb4 {[%emt 0:07:44]} 28. axb4 {[%emt 0:01:46]} b5 {[%emt 0:04:41]} 29. h4 {[%emt 0:01:39]} h5 {[%emt 0:01:28]} 30. Kh2 {[%emt 0:04:00]} Kh7 {[%emt 0:01:36]} 31. Qe1 {[%emt 0:02:05]} Qa8 {[%emt 0:03:12]} 32. Qg3 {[%emt 0:01:12]} Qe8 {[%emt 0:01:04]} 33. Qg5 {[%emt 0:01:19]} g6 {[%emt 0:02:35]} 34. Qf6 {[%emt 0:01:04]} Qg8 {[%emt 0:01:29]} 35. Nf7 {[%emt 0:01:41]} Qg7 {[%emt 0:03:52]} 36. Ng5+ {[%emt 0:01:17]} Kg8 {[%emt 0:01:09]} 37. Qd8+ {[%emt 0:00:34]} Qf8 {[%emt 0:00:17]} 38. Qd7 {[%emt 0:00:30]} Qg7 {[%emt 0:00:53]} 39. Qe8+ {[%emt 0:00:15]} Qf8 {[%emt 0:01:01]} 40. Qxg6+ {[%emt 0:00:03]} Qg7 {[%emt 0:00:17]} 41. Qe8+ {[%emt 0:31:25]} Qf8 {[%emt 0:30:23]} 42. Qxb5 {[%emt 0:00:36]} Qe7 {[%emt 0:01:31]} 43. Qb8+ {[%emt 0:00:57]} Kg7 {[%emt 0:00:37]} 44. b5 {[%emt 0:00:25]} Kf6 {[%emt 0:02:06]} 45. Qe5+ {[%emt 0:00:44]} Kg6 {[%emt 0:00:41]} 46. b6 {[%emt 0:00:18]} Kh6 {[%emt 0:01:09]} 47. Qb8 {[%emt 0:03:57]} Kg6 {[%emt 0:01:33]} 48. Qg8+ {[%emt 0:01:36]} Qg7 {[%emt 0:01:12]} 49. Qe8+ {[%emt 0:01:24]} Kf6 {[%emt 0:01:47]} 50. Qxh5 {[%emt 0:01:48]} Ke7 {[%emt 0:00:40]} 51. Qh7 {[%emt 0:00:53]} Qxh7 {[%emt 0:00:13]} 52. Nxh7 {[%emt 0:00:01]} Kf7 {[%emt 0:00:32]} 53. h5 {[%emt 0:00:53]} Kg7 {[%emt 0:00:28]} 54. Ng5 {[%emt 0:00:11]} Kh6 {[%emt 0:00:59]} 55. Nf7+ {[%emt 0:01:00]} Kxh5 {[%emt 0:00:40]} 56. Nd6 {[%emt 0:00:12]} Kg6 {[%emt 0:00:40]} 57. b7 {[%emt 0:00:11]} Bxb7 {[%emt 0:00:18]} 58. Nxb7 {[%emt 0:00:07]} Kf6 {[%emt 0:00:12]} 59. g4 {[%emt 0:00:24]} fxg4 {[%emt 0:00:41]} 60. fxg4 {[%emt 0:00:05]} 1-0

[Event "44th Chess Olympiad Women 2022"]
[Site "Chennai"]
[Date "2022.08.02"]
[Round "5.52"]
[White "Rakotoniaina Tiana Johanna"]
[Black "Lebel-Arias, Julia"]
[Result "0-1"]
[ECO "B06"]
[WhiteElo "1529"]
[BlackElo "1660"]
[Annotator "NA RC COMBH"]
[PlyCount "82"]
[EventDate "2022.07.29"]
[EventType "team-tourn"]
[EventCountry "IND"]
[SourceTitle "playchess.com"]
[Source "ChessBase"]
[SourceQuality "1"]
[WhiteTeam "Madagascar"]
[BlackTeam "Monaco"]
[WhiteTeamCountry "MAD"]
[BlackTeamCountry "MNC"]
[TimeControl "40/5400+30:1800+30"]

1. e4 {[%emt 0:00:07]} d6 {[%emt 0:00:08]} 2. d4 {[%emt 0:00:12]} g6 {[%emt 0:00:13]} 3. Nf3 {[%emt 0:00:08]} Bg7 {[%emt 0:00:08]} 4. Bc4 {[%emt 0:00:10]} e6 {[%emt 0:00:15]} 5. Be3 {[%emt 0:01:18]} Ne7 {[%emt 0:00:21]} 6. c3 {[%emt 0:00:51]} c6 {[%emt 0:00:21]} 7. Bb3 {[%emt 0:01:05]} Nd7 {[%emt 0:02:21]} 8. Nbd2 {[%emt 0:00:43]} b5 {[%emt 0:01:43]} 9. Ng5 {[%emt 0:06:41]} Nb6 {[%emt 0:00:53]} 10. f4 {[%emt 0:01:42]} O-O {[%emt 0:00:37]} 11. O-O {[%emt 0:00:16]} d5 {[%emt 0:00:34]} 12. Bc2 {[%emt 0:02:41]} Nc4 {[%emt 0:00:22]} 13. Nxc4 {[%emt 0:08:27]} bxc4 {[%emt 0:00:26]} 14. Qe1 {[%emt 0:05:09]} h6 {[%emt 0:00:19]} 15. Nh3 {[%emt 0:01:03]} dxe4 {[%emt 0:00:47]} 16. Bxe4 {[%emt 0:01:38]} Nd5 {[%emt 0:00:11]} 17. Bd2 {[%emt 0:01:31]} Rb8 {[%emt 0:00:34]} 18. Qc1 {[%emt 0:01:56]} f5 {[%emt 0:01:30]} 19. Bc2 {[%emt 0:01:18]} Nf6 {[%emt 0:01:49]} 20. Nf2 {[%emt 0:00:27]} c5 {[%emt 0:02:34]} 21. Be3 {[%emt 0:02:47]} Bb7 {[%emt 0:00:46]} 22. Bd1 {[%emt 0:03:28]} Nd5 {[%emt 0:03:58]} 23. dxc5 {[%emt 0:01:29]} Qc7 {[%emt 0:00:21]} 24. Nh1 {[%emt 0:01:10]} Nxe3 {[%emt 0:01:15]} 25. Qxe3 {[%emt 0:00:18]} Bd5 {[%emt 0:00:58]} 26. Rb1 {[%emt 0:01:39]} Rfe8 {[%emt 0:00:16]} 27. Ba4 {[%emt 0:04:05]} Re7 {[%emt 0:00:32]} 28. b4 {[%emt 0:07:15]} cxb3 {[%emt 0:01:19]} 29. axb3 {[%emt 0:00:01]} e5 {[%emt 0:00:32]} 30. c4 {[%emt 0:03:53]} Be4 {[%emt 0:00:26]} 31. Rbd1 {[%emt 0:01:35]} exf4 {[%emt 0:00:11]} 32. Qxf4 {[%emt 0:00:21]} Qxc5+ {[%emt 0:00:09]} 33. Rf2 {[%emt 0:02:54]} Qe5 {[%emt 0:01:21]} 34. Qd2 {[%emt 0:02:42]} Qc5 {[%emt 0:00:36]} 35. Qf4 {[%emt 0:01:16]} Rf8 {[%emt 0:00:12]} 36. Kf1 {[%emt 0:01:09]} g5 {[%emt 0:00:45]} 37. Qd2 {[%emt 0:01:06]} a5 {[%emt 0:00:36]} 38. Qd6 {[%emt 0:00:46]} Qxd6 {[%emt 0:00:49]} 39. Rxd6 {[%emt 0:00:09]} Rc8 {[%emt 0:02:22]} 40. Ra6 {[%emt 0:00:56]} Bd3+ {[%emt 0:00:52]} 41. Kg1 {[%emt 0:31:12]} Re1+ {[%emt 0:30:12]} 0-1

[Event "44th Chess Olympiad Women 2022"]
[Site "Chennai"]
[Date "2022.08.02"]
[Round "5.53"]
[White "Chung Hurtado, Yaleika"]
[Black "Ben Said, Safa"]
[Result "1-0"]
[ECO "A36"]
[WhiteElo "1696"]
[BlackElo "1564"]
[Annotator "NA RC COMBH"]
[PlyCount "145"]
[EventDate "2022.07.29"]
[EventType "team-tourn"]
[EventCountry "IND"]
[SourceTitle "playchess.com"]
[Source "ChessBase"]
[SourceQuality "1"]
[WhiteTeam "Panama"]
[BlackTeam "Tunisia"]
[WhiteTeamCountry "PAN"]
[BlackTeamCountry "TUN"]
[TimeControl "40/5400+30:1800+30"]

1. c4 {[%emt 0:00:04]} c5 {[%emt 0:00:33]} 2. Nc3 {[%emt 0:00:09]} Nc6 {[%emt 0:00:11]} 3. g3 {[%emt 0:00:21]} g6 {[%emt 0:00:35]} 4. Bg2 {[%emt 0:00:18]} Bg7 {[%emt 0:00:05]} 5. e3 {[%emt 0:00:28]} d6 {[%emt 0:01:43]} 6. Nge2 {[%emt 0:00:42]} Bf5 {[%emt 0:08:47]} 7. d3 {[%emt 0:02:22]} a6 {[%emt 0:02:35]} 8. O-O {[%emt 0:00:47]} Nf6 {[%emt 0:05:10]} 9. Nd5 {[%emt 0:05:30]} O-O {[%emt 0:05:10]} 10. Nec3 {[%emt 0:04:02]} Bd7 {[%emt 0:03:46]} 11. Qb3 {[%emt 0:03:16]} Nxd5 {[%emt 0:01:46]} 12. Nxd5 {[%emt 0:00:45]} e6 {[%emt 0:01:13]} 13. Nf4 {[%emt 0:04:57]} Rb8 {[%emt 0:03:15]} 14. a3 {[%emt 0:13:12]} b5 {[%emt 0:05:50]} 15. Qc2 {[%emt 0:02:23]} bxc4 {[%emt 0:01:47]} 16. dxc4 {[%emt 0:00:13]} Na5 {[%emt 0:02:24]} 17. Rb1 {[%emt 0:02:36]} Nb3 {[%emt 0:14:19]} 18. Bd2 {[%emt 0:06:04]} Nxd2 {[%emt 0:06:49]} 19. Qxd2 {[%emt 0:00:13]} Ba4 {[%emt 0:00:13]} 20. b4 {[%emt 0:03:08]} Qc7 {[%emt 0:02:25]} 21. Rfc1 {[%emt 0:06:14]} Rb6 {[%emt 0:06:20]} 22. b5 {[%emt 0:14:01]} Rbb8 {[%emt 0:10:48]} 23. bxa6 {[%emt 0:07:24]} Bc6 {[%emt 0:07:28]} 24. Bxc6 {[%emt 0:03:33]} Qxc6 {[%emt 0:00:05]} 25. Qa5 {[%emt 0:00:10]} Bb2 {[%emt 0:01:08]} 26. Rd1 {[%emt 0:06:34]} Rb3 {[%emt 0:02:54]} 27. Qd2 {[%emt 0:00:08]} Bc3 {[%emt 0:00:50]} 28. Qc2 {[%emt 0:01:44]} Rxa3 {[%emt 0:00:56]} 29. Rd3 {[%emt 0:00:09]} Bb4 {[%emt 0:00:54]} 30. Rxa3 {[%emt 0:01:27]} Bxa3 {[%emt 0:00:05]} 31. a7 {[%emt 0:00:47]} Qa6 {[%emt 0:00:45]} 32. Qd3 {[%emt 0:01:55]} Qxa7 {[%emt 0:00:59]} 33. Qxd6 {[%emt 0:00:21]} Bb4 {[%emt 0:00:42]} 34. Qd3 {[%emt 0:03:28]} Qa2 {[%emt 0:02:00]} 35. Qb3 {[%emt 0:01:52]} Qxb3 {[%emt 0:01:25]} 36. Rxb3 {[%emt 0:00:03]} Ra8 {[%emt 0:00:28]} 37. Nd3 {[%emt 0:00:09]} Ra3 {[%emt 0:00:22]} 38. Rxa3 {[%emt 0:00:42]} Bxa3 {[%emt 0:00:04]} 39. Kf1 {[%emt 0:00:15]} Kf8 {[%emt 0:00:44]} 40. Ke2 {[%emt 0:00:07]} Ke7 {[%emt 0:01:16]} 41. Ne1 {[%emt 0:31:04]} Kd6 {[%emt 0:31:06]} 42. Nc2 {[%emt 0:00:57]} Bb2 {[%emt 0:00:00]} 43. Kd3 {[%emt 0:00:00]} h6 {[%emt 0:00:00]} 44. f3 {[%emt 0:00:00]} h5 {[%emt 0:00:00]} 45. Ne1 {[%emt 0:00:00]} Ba1 {[%emt 0:00:00]} 46. Ng2 {[%emt 0:00:00]} Bb2 {[%emt 0:00:00]} 47. Ke4 {[%emt 0:00:00]} Be5 {[%emt 0:00:00]} 48. f4 {[%emt 0:00:00]} Bf6 {[%emt 0:00:00]} 49. h3 {[%emt 0:00:00]} Bc3 {[%emt 0:00:00]} 50. Kd3 {[%emt 0:00:00]} Bf6 {[%emt 0:00:46]} 51. e4 {[%emt 0:00:00]} Bd4 {[%emt 0:01:19]} 52. g4 {[%emt 0:00:00]} hxg4 {[%emt 0:01:27]} 53. hxg4 {[%emt 0:00:00]} Bf2 {[%emt 0:01:12]} 54. Ke2 {[%emt 0:04:18]} Bd4 {[%emt 0:00:08]} 55. Nh4 {[%emt 0:00:26]} Kc6 {[%emt 0:00:37]} 56. Nf3 {[%emt 0:00:28]} Bf6 {[%emt 0:00:42]} 57. Kd3 {[%emt 0:01:06]} Kb6 {[%emt 0:00:36]} 58. e5 {[%emt 0:01:16]} Be7 {[%emt 0:00:23]} 59. Nd2 {[%emt 0:02:59]} Kc6 {[%emt 0:01:04]} 60. Ne4 {[%emt 0:00:11]} Kb6 {[%emt 0:00:23]} 61. Nf2 {[%emt 0:00:50]} Kc6 {[%emt 0:00:12]} 62. g5 {[%emt 0:00:08]} Kb6 {[%emt 0:00:15]} 63. Ng4 {[%emt 0:00:05]} Kc6 {[%emt 0:00:24]} 64. Nh6 {[%emt 0:00:08]} Kd7 {[%emt 0:01:00]} 65. Nxf7 {[%emt 0:00:13]} Bf8 {[%emt 0:00:17]} 66. Nh8 {[%emt 0:00:37]} Bg7 {[%emt 0:00:31]} 67. Nxg6 {[%emt 0:00:07]} Ke8 {[%emt 0:00:10]} 68. Ke4 {[%emt 0:00:33]} Kf7 {[%emt 0:00:36]} 69. Nh4 {[%emt 0:00:07]} Bf8 {[%emt 0:00:36]} 70. f5 {[%emt 0:00:36]} Ke7 {[%emt 0:02:17]} 71. Ng6+ {[%emt 0:00:14]} Kf7 {[%emt 0:00:28]} 72. Nxf8 {[%emt 0:00:14]} Kxf8 {[%emt 0:00:33]} 73. fxe6 {[%emt 0:00:24]} 1-0